bitfinex/quotes_ETHUSD_20240828
["timestamp","ask_amount","ask_price","bid_price","bid_amount"]
[1724818364736,4.05379268,2481.8,2481.5,0.56455212]
[1724818367515,0.42202444,2481.9,2481.5,0.56455212]
[1724818371459,0.42202444,2481.9,2481.5,0.56303175]
[1724818372446,0.42202444,2481.9,2481.4,5.0517]
[1724818374143,1.68841299,2481.8,2481.4,5.0517]
[1724818374507,0.42202444,2481.9,2481.4,5.0517]
[1724818374711,1.68841299,2481.8,2481.4,5.0517]
[1724818376115,0.42202444,2481.9,2481.5,5.2696866]
[1724818376391,0.42202444,2481.9,2481.8,5.1891]
[1724818376543,0.42202444,2481.9,2481.8,10.16240567]
[1724818376544,0.02601025,2481.9,2481.8,10.16240567]
[1724818376725,1.68841299,2483.0,2481.9,5.1891]
[1724818376930,1.68841299,2483.0,2482.2,1.68841299]
[1724818377119,1.68841299,2483.0,2482.3,5.44225653]
[1724818378909,5.1679,2483.3,2482.3,5.44225653]
[1724818379165,1.68841299,2482.9,2482.3,5.44225653]
[1724818380176,1.68841299,2482.9,2482.3,5.3617]
[1724818380177,4.04862884,2482.9,2482.3,5.3617]
[1724818380362,4.04862884,2482.7,2482.3,5.89787]
[1724818380659,4.04862884,2482.7,2482.3,5.3617]
[1724818382527,4.04862884,2482.9,2482.3,5.3617]
[1724818383961,4.257,2484.3,2481.5,4.8881536]
[1724818383962,4.9699,2483.6,2482.4,4.98036]
[1724818384164,4.04862884,2483.4,2482.6,4.9724]
[1724818384364,4.04862884,2483.4,2482.7,0.08054632]
[1724818386665,4.04862884,2483.2,2482.6,4.9724]
[1724818386880,4.04862884,2483.2,2482.6,5.5194436]
[1724818387600,0.546689,2483.4,2481.7,6.54645182]
[1724818387601,4.04862884,2482.8,2481.7,6.54645182]
[1724818387824,4.04862884,2482.5,2482.1,5.1203]
[1724818387979,4.04862884,2482.3,2481.8,5.1203]
[1724818388186,4.04862884,2482.3,2481.8,6.28697518]
[1724818389607,4.04862884,2482.5,2481.8,6.28697518]
[1724818390801,4.04862884,2482.7,2482.0,5.1858]
[1724818391328,4.04862884,2482.5,2482.0,5.1858]
[1724818391628,4.04862884,2482.7,2482.0,5.1858]
[1724818391790,4.04862884,2482.7,2482.1,0.64691427]
[1724818392194,4.9765,2482.9,2482.1,0.64691427]
[1724818392195,0.42192455,2482.8,2482.2,5.4122641]
[1724818392527,0.42192455,2482.8,2482.4,5.3317]
[1724818393594,4.04862884,2483.1,2482.5,0.08055693]
[1724818393931,4.04862884,2483.1,2482.4,5.3317]
[1724818393932,4.47051788,2483.1,2482.4,5.3317]
[1724818394289,4.47051788,2483.1,2482.5,4.98235049]
[1724818394516,4.47051788,2483.1,2482.6,5.40003505]
[1724818394717,0.42188904,2483.1,2482.6,5.40003505]
[1724818394915,0.42188904,2483.1,2482.7,0.08055042]
[1724818395129,0.42188904,2483.1,2482.8,5.1311]
[1724818395352,4.04862884,2483.5,2482.9,0.08054404]
[1724818395550,4.04862884,2483.5,2483.0,5.1311]
[1724818397632,4.04862884,2483.5,2483.1,0.08054136]
[1724818397821,0.42181099,2483.7,2483.1,0.08054136]
[1724818397822,4.47043983,2483.7,2483.1,0.08054136]
[1724818398016,0.42181099,2483.7,2483.2,5.2528]
[1724818398216,0.42181099,2483.7,2483.4,5.2528]
[1724818398422,0.42181099,2483.7,2483.5,0.08051936]
[1724818398655,11.48862884,2484.3,2483.5,0.08051936]
[1724818398818,4.04862884,2484.3,2483.5,0.08051936]
[1724818399015,4.47027819,2484.3,2483.5,1.32182989]
[1724818399731,4.47027819,2484.3,2483.4,11.79925182]
[1724818399732,4.04862884,2484.1,2483.4,11.79925182]
[1724818400139,4.04862884,2484.1,2483.4,5.51977072]
[1724818400441,4.04862884,2484.1,2483.3,0.53333414]
[1724818400757,4.04862884,2483.9,2483.0,12.42]
[1724818402158,4.04862884,2484.1,2483.0,12.42]
[1724818402331,4.47027819,2484.3,2483.1,1.792]
[1724818403125,4.47027819,2484.3,2483.2,5.1625]
[1724818403586,4.47027819,2484.3,2483.3,12.5325]
[1724818403755,0.42164935,2484.3,2483.4,5.1625]
[1724818403976,0.42164935,2484.3,2483.3,7.37]
[1724818403977,0.42164935,2484.3,2483.6,5.1625]
[1724818404329,0.42164935,2484.3,2483.6,3.0425]
[1724818404630,4.47027819,2484.3,2483.6,0.9225]
[1724818404942,4.47027819,2484.3,2483.6,1.140075]
[1724818405142,0.42164935,2484.3,2483.6,1.140075]
[1724818405740,5.013,2485.0,2483.7,0.55]
[1724818405960,5.013,2485.0,2483.9,7.37]
[1724818405961,6.01977768,2485.0,2483.9,7.37]
[1724818406138,5.91916288,2485.0,2483.9,7.37]
[1724818407751,4.04862884,2484.9,2484.0,5.0451]
[1724818410469,5.91916288,2485.0,2484.0,5.0451]
[1724818410663,5.013,2485.0,2484.1,1.24151]
[1724818412177,5.11361109,2485.0,2484.2,4.9057]
[1724818412383,5.013,2485.0,2484.2,4.9057]
[1724818412678,5.013,2485.0,2484.3,0.614721]
[1724818413244,4.47020639,2485.1,2484.3,0.614721]
[1724818413445,4.57081741,2485.1,2484.3,0.614721]
[1724818413852,0.52218857,2485.1,2484.3,0.614721]
[1724818414881,4.57081741,2485.1,2484.3,0.614721]
[1724818415079,0.98068174,2485.0,2484.3,0.614721]
[1724818415240,0.42157755,2485.1,2484.3,0.614721]
[1724818415692,0.42157755,2485.1,2484.4,4.9727]
[1724818416050,5.0146,2485.4,2484.4,4.9727]
[1724818418270,4.17392796,2485.4,2484.4,4.9727]
[1724818418582,4.17392796,2485.4,2484.3,7.984721]
[1724818418583,4.17392796,2485.4,2484.6,4.957]
[1724818420283,4.04862884,2485.6,2484.6,4.957]
[1724818420452,4.04862884,2485.6,2484.7,5.0597]
[1724818421384,7.2944065,2485.6,2484.7,5.0597]
[1724818421587,7.2944065,2485.6,2484.8,1.24297]
[1724818421588,7.39499463,2485.6,2484.8,1.24297]
[1724818422974,7.39499463,2485.6,2484.7,5.0597]
[1724818423190,4.04862884,2485.0,2484.6,7.37]
[1724818423396,4.04862884,2485.0,2484.2,7.37]
[1724818423397,3.62070283,2484.9,2484.2,7.37]
[1724818423556,3.52009095,2484.9,2484.2,9.84812]
[1724818424652,3.6207023,2484.9,2484.2,9.84812]
[1724818424853,3.6207023,2484.9,2484.2,7.37]
[1724818428099,3.6207023,2484.9,2484.1,4.9912]
[1724818429036,0.10061578,2485.2,2484.1,4.9912]
[1724818429151,7.44,2485.3,2484.5,4.8958]
[1724818429358,7.44,2485.3,2484.6,4.04862884]
[1724818429585,0.42151882,2485.7,2484.8,8.94442884]
[1724818430404,0.42151882,2485.7,2484.8,4.8958]
[1724818435611,4.47014766,2485.7,2484.8,4.8958]
[1724818435998,0.42151882,2485.7,2484.8,4.8958]
[1724818437083,0.52210219,2485.7,2484.8,4.8958]
[1724818437322,0.42151882,2485.7,2484.9,0.48958]
[1724818437705,0.52210221,2485.7,2484.9,0.48958]
[1724818437907,0.52210222,2485.7,2484.9,0.48958]
[1724818438495,4.57073106,2485.7,2484.9,0.48958]
[1724818438700,5.51597417,2485.7,2484.9,0.48958]
[1724818440302,5.51597417,2485.7,2484.5,12.5095]
[1724818440303,5.2162,2485.4,2484.5,12.5095]
[1724818440501,5.2162,2485.6,2484.6,5.1395]
[1724818440699,0.10059145,2485.5,2484.6,5.1395]
[1724818440937,0.52207913,2485.5,2484.6,5.1395]
[1724818441137,0.52207913,2485.5,2484.7,1.33490248]
[1724818441440,0.42148768,2485.5,2484.7,1.33490248]
[1724818441996,4.57070814,2485.5,2484.7,1.33490248]
[1724818442202,4.57070814,2485.5,2484.6,5.1395]
[1724818444108,4.04862884,2485.1,2484.3,6.11052476]
[1724818444302,0.100614,2485.0,2484.4,3.50324621]
[1724818444506,0.100614,2485.0,2484.4,0.9613771]
[1724818444704,0.100614,2485.0,2484.3,5.271]
[1724818444936,4.04862884,2484.9,2484.3,5.271]
[1724818445116,5.44721605,2484.8,2484.1,13.74432476]
[1724818445322,5.44721605,2484.8,2484.2,3.50370023]
[1724818445529,5.44721605,2484.8,2484.2,1.96432196]
[1724818445924,4.04862884,2484.7,2484.0,0.83952476]
[1724818446124,4.04862884,2484.7,2484.1,3.50387896]
[1724818446125,4.14925869,2484.7,2484.1,3.50387896]
[1724818446354,4.14925869,2484.7,2483.9,0.83952476]
[1724818446650,4.14925869,2484.7,2484.0,3.50401253]
[1724818446825,4.14925869,2484.7,2483.9,1.53501794]
[1724818447025,4.14925869,2484.7,2484.0,1.40159253]
[1724818447225,4.14925869,2484.7,2483.9,0.69549318]
[1724818447431,4.14925869,2484.7,2484.0,4.22768285]
[1724818447727,4.14925869,2484.7,2484.0,0.72366179]
[1724818449230,5.3466,2484.8,2484.0,0.72366179]
[1724818449452,5.3466,2484.8,2484.1,1.40149538]
[1724818449616,5.3466,2484.8,2484.0,0.72366179]
[1724818449821,5.44722087,2484.8,2484.1,1.40148164]
[1724818450053,5.44722087,2484.8,2484.2,0.21251434]
[1724818450233,5.44722087,2484.8,2484.0,0.72366179]
[1724818451858,5.44722087,2484.8,2484.1,5.7257]
[1724818452017,5.3466,2484.8,2484.1,5.7257]
[1724818452218,5.44722096,2484.8,2484.1,5.7257]
[1724818452415,5.44722096,2484.8,2484.2,0.64493618]
[1724818456163,4.13601553,2484.8,2484.2,0.64493618]
[1724818458224,0.10062097,2484.7,2484.2,0.64493618]
[1724818459964,4.03539457,2484.8,2484.2,0.64493618]
[1724818461727,0.10062074,2484.7,2484.2,0.64493618]
[1724818462570,0.10062074,2484.7,2484.3,0.63706362]
[1724818462885,0.10062074,2484.7,2484.1,5.7257]
[1724818464948,0.10062074,2484.7,2484.0,0.72366179]
[1724818465146,5.3669,2484.6,2483.9,7.37]
[1724818465398,0.10063003,2484.5,2483.9,7.37]
[1724818467084,5.46753001,2484.6,2483.9,7.37]
[1724818467295,5.46753001,2484.6,2484.0,0.737]
[1724818467465,5.3669,2484.6,2484.0,0.737]
[1724818468395,0.10063001,2484.5,2484.0,0.737]
[1724818468599,0.10063001,2484.5,2483.9,7.37]
[1724818468600,5.5577,2484.4,2483.9,7.37]
[1724818468744,5.5577,2484.2,2483.9,7.37]
[1724818468944,0.10064454,2484.1,2483.4,0.83952476]
[1724818469148,0.10064454,2484.1,2483.4,1.71104407]
[1724818469775,5.5172,2484.0,2483.3,5.6244]
[1724818472774,5.5172,2484.0,2483.2,1.766]
[1724818473007,0.10064454,2484.1,2483.2,1.766]
[1724818473008,5.312,2483.6,2483.2,1.766]
[1724818473208,6.34872984,2483.6,2483.2,1.766]
[1724818473516,4.04862884,2483.5,2483.2,1.766]
[1724818473833,4.04862884,2483.3,2483.2,1.766]
[1724818473982,4.14930691,2483.3,2483.2,1.766]
[1724818474433,2.6231777,2483.3,2483.2,1.766]
[1724818475840,9.03239547,2483.3,2483.2,1.766]
[1724818475982,8.2388777,2483.3,2483.2,1.766]
[1724818480845,5.6157,2483.3,2483.2,1.766]
[1724818483305,9.66432884,2483.3,2483.2,1.766]
[1724818491751,10.21432884,2483.3,2483.2,1.766]
[1724818491912,11.2779352,2483.3,2483.2,1.766]
[1724818492710,5.4997,2483.2,2481.9,7.37]
[1724818492920,4.04862884,2482.4,2481.9,7.37]
[1724818493257,4.04862884,2482.4,2481.8,5.864]
[1724818493258,4.14934406,2482.4,2481.8,5.864]
[1724818493421,4.14934406,2482.4,2481.9,0.5864]
[1724818495025,0.10071522,2482.4,2481.9,0.5864]
[1724818495566,5.64291916,2482.5,2481.9,0.5864]
[1724818495720,5.64291916,2482.5,2482.0,0.64504]
[1724818496128,5.64291916,2482.5,2481.9,0.5864]
[1724818496129,4.04862884,2482.4,2481.9,0.5864]
[1724818496327,4.14934805,2482.4,2481.9,0.5864]
[1724818496749,3.14934805,2482.4,2481.9,0.5864]
[1724818498642,0.10071921,2482.4,2481.9,0.5864]
[1724818499047,0.10071921,2482.4,2482.0,0.64232]
[1724818499967,0.10071921,2482.4,2481.8,5.8368]
[1724818500426,5.767,2482.1,2481.7,7.37]
[1724818500625,5.767,2482.3,2481.7,7.37]
[1724818500825,0.10072446,2482.3,2481.9,5.6061]
[1724818501020,0.10072447,2482.5,2481.9,5.6061]
[1724818501225,0.10072447,2482.5,2482.0,0.63431]
[1724818502347,0.42170233,2482.7,2482.0,0.63431]
[1724818502666,0.52240942,2482.7,2482.0,0.63431]
[1724818503567,0.52240942,2482.7,2482.1,5.4532]
[1724818504068,0.42170233,2482.7,2482.1,5.4532]
[1724818509735,0.52240115,2482.7,2482.1,5.4532]
[1724818510686,0.42170233,2482.7,2482.1,5.4532]
[1724818510980,5.333,2483.3,2482.2,5.3378]
[1724818511136,0.42163856,2483.2,2482.4,5.3378]
[1724818511545,0.10068045,2483.4,2482.4,5.3378]
[1724818511779,0.10068045,2483.4,2482.6,5.7151]
[1724818511987,4.04862884,2483.2,2482.5,1.67564288]
[1724818512194,5.35688708,2483.1,2482.3,7.37]
[1724818512354,5.2562,2483.1,2482.3,7.37]
[1724818512549,5.35688541,2483.1,2482.3,7.37]
[1724818512890,5.35688541,2483.1,2482.4,1.363042]
[1724818514687,4.04862884,2483.0,2482.3,7.37]
[1724818514890,0.10069813,2482.9,2482.3,7.37]
[1724818515464,4.1493249,2483.0,2482.3,7.37]
[1724818515684,4.1493249,2483.0,2482.4,1.363042]
[1724818516160,0.10069606,2483.0,2482.4,1.363042]
[1724818516994,5.7813,2483.3,2482.5,5.2733]
[1724818517150,5.7813,2483.3,2482.6,0.6636342]
[1724818517651,5.88197699,2483.3,2482.6,0.6636342]
[1724818517886,4.14930588,2483.2,2482.4,1.363042]
[1724818518192,5.7672,2483.1,2482.4,1.363042]
[1724818518382,5.86788834,2483.1,2482.4,1.363042]
[1724818518581,5.86788834,2483.1,2482.5,1.4185342]
[1724818519092,5.7672,2483.1,2482.5,1.4185342]
[1724818520610,9.46222884,2483.4,2482.6,5.3718]
[1724818520779,5.5142794,2483.4,2482.6,5.3718]
[1724818521101,9.56290824,2483.4,2482.7,0.67903342]
[1724818522091,5.4136,2483.3,2482.6,7.37]
[1724818522299,0.10068753,2483.2,2482.6,7.37]
[1724818526223,0.10068753,2483.2,2482.5,1.4185342]
[1724818526389,0.10068753,2483.2,2482.4,6.21132476]
[1724818526589,0.10068753,2483.2,2482.5,3.50610891]
[1724818526818,0.10068753,2483.2,2482.4,6.21132476]
[1724818527155,5.51429033,2483.3,2482.5,1.40246325]
[1724818527357,0.10069033,2483.2,2482.6,0.67742633]
[1724818529550,5.2948,2483.1,2482.3,8.61332476]
[1724818529713,5.39548767,2483.1,2482.4,3.5061842]
[1724818529913,5.39548767,2483.1,2482.5,1.1715709]
[1724818530659,5.4962,2482.9,2482.3,7.37]
[1724818530963,5.5968962,2482.9,2482.3,7.37]
[1724818532462,5.5327,2482.7,2481.9,8.61332476]
[1724818532683,0.10070759,2482.6,2482.0,3.50681448]
[1724818532822,0.10070759,2482.6,2481.9,8.61332476]
[1724818533023,5.4877,2482.5,2482.0,5.02443898]
[1724818533350,5.4877,2482.5,2482.0,1.51759565]
[1724818534947,5.58841093,2482.5,2481.9,7.37]
[1724818537645,5.4997,2482.3,2481.9,7.37]
[1724818537974,0.55968962,2482.9,2481.5,7.37]
[1724818537975,4.04862884,2482.0,2481.5,7.37]
[1724818538262,4.04862884,2482.0,2481.3,8.20952476]
[1724818538263,4.14935622,2482.0,2481.3,8.20952476]
[1724818538453,5.4997,2481.9,2481.4,1.40311026]
[1724818538635,5.4997,2481.9,2481.4,0.94628565]
[1724818543669,3.90499099,2481.9,2481.4,0.94628565]
[1724818547396,0.10073169,2481.8,2481.4,0.94628565]
[1724818548180,1.68842258,2481.7,2481.4,0.94628565]
[1724818548498,1.68842258,2481.7,2481.3,7.37]
[1724818549096,0.10074131,2481.8,2481.3,7.37]
[1724818549349,2.3296057,2481.9,2481.3,7.37]
[1724818549611,4.01802828,2481.9,2481.3,7.37]
[1724818550209,0.1007378,2482.2,2481.4,5.7533]
[1724818550506,0.1007378,2482.2,2481.4,6.4903]
[1724818550507,1.68842258,2482.1,2481.4,6.4903]
[1724818551184,5.4751378,2482.2,2481.4,6.4903]
[1724818551185,1.68842258,2481.9,2481.4,6.4903]
[1724818551360,1.68842258,2481.9,2481.5,1.38603]
[1724818554706,0.0974425,2481.9,2481.5,1.38603]
[1724818556375,0.0974425,2481.9,2481.4,0.737]
[1724818556376,5.8341,2481.8,2481.4,0.737]
[1724818556577,1.68842258,2481.7,2481.3,7.37]
[1724818560429,1.68842258,2481.9,2481.3,7.37]
[1724818560589,0.10073554,2482.0,2481.4,5.7098]
[1724818560785,0.10073554,2482.0,2481.4,6.61564226]
[1724818563241,1.68842258,2481.9,2481.4,6.61564226]
[1724818563392,1.68842258,2481.9,2481.4,0.90584226]
[1724818563821,5.318,2481.8,2481.4,0.90584226]
[1724818564857,1.68842258,2481.9,2481.4,0.90584226]
[1724818565082,1.68842258,2481.9,2481.5,0.82758423]
[1724818565558,1.68842258,2481.9,2481.5,6.36768423]
[1724818565763,0.42164575,2482.3,2481.5,6.36768423]
[1724818565764,1.68842258,2482.1,2481.5,6.36768423]
[1724818565978,0.1007322,2482.0,2481.5,6.36768423]
[1724818566154,0.1007322,2482.0,2481.6,0.72735265]
[1724818567287,1.68842258,2481.9,2481.5,0.82758423]
[1724818568133,7.44182258,2481.9,2481.5,0.82758423]
[1724818569863,0.10073272,2481.8,2481.4,0.90584226]
[1724818570280,7.44182258,2481.9,2481.4,0.90584226]
[1724818570653,1.68842258,2481.7,2481.4,0.90584226]
[1724818570853,0.10073756,2481.6,2481.4,0.90584226]
[1724818571167,5.60443756,2481.6,2481.3,7.37]
[1724818571481,5.5037,2481.6,2481.3,7.37]
[1724818571988,5.60444703,2481.6,2481.3,7.37]
[1724818573263,0.10074703,2481.6,2481.3,7.37]
[1724818573452,1.78916964,2481.7,2481.3,9.349]
[1724818573876,1.78916964,2481.7,2481.3,1.979]
[1724818574078,1.78916964,2481.7,2481.0,5.9823]
[1724818575253,1.78916964,2481.7,2481.1,1.40324184]
[1724818575450,0.42165654,2482.0,2481.1,5.4615]
[1724818575677,0.52239517,2482.0,2481.3,5.4615]
[1724818576182,0.52239517,2482.0,2481.4,3.50763847]
[1724818576383,0.42165654,2482.0,2481.5,3.50748308]
[1724818576595,1.68842258,2482.6,2481.9,5.742]
[1724818577306,1.68842258,2482.6,2481.8,1.68842258]
[1724818577307,0.42159439,2482.7,2482.3,1.68842258]
[1724818577482,7.44,2483.7,2482.1,5.4582]
[1724818577483,1.68842258,2483.1,2482.4,1.68842258]
[1724818577688,0.1006937,2483.1,2482.4,1.68842258]
[1724818577857,1.68842258,2483.0,2482.3,1.68842258]
[1724818578058,1.68842258,2483.1,2482.4,2.31007559]
[1724818578310,1.68842258,2483.1,2482.4,0.90760367]
[1724818578603,1.68842258,2482.9,2482.5,0.25960262]
[1724818578900,1.68842258,2483.0,2482.4,0.90760367]
[1724818579998,9.41142455,2483.2,2482.4,0.90760367]
[1724818581209,5.36328813,2483.2,2482.4,0.90760367]
[1724818581403,5.2626,2483.2,2482.4,0.90760367]
[1724818581707,0.10068816,2483.1,2482.4,0.90760367]
[1724818583104,0.10068816,2483.1,2482.5,0.82776037]
[1724818583676,9.31073642,2483.2,2482.5,0.82776037]
[1724818586668,5.2626,2483.2,2482.5,0.82776037]
[1724818587091,5.2626,2483.2,2482.6,5.7361]
[1724818587359,0.10068826,2483.3,2482.6,5.7361]
[1724818587594,0.10068826,2483.3,2482.7,0.65638604]
[1724818588415,0.42156766,2483.4,2482.8,5.2831]
[1724818588765,7.44,2483.7,2482.8,5.2831]
[1724818589079,7.44,2483.7,2482.5,1.66728513]
[1724818589080,0.42154516,2483.9,2483.1,4.04813642]
[1724818589283,5.3328,2484.7,2483.5,5.5016]
[1724818589513,0.10063465,2484.6,2483.7,5.5016]
[1724818589720,0.10063465,2484.6,2483.4,4.04813642]
[1724818589721,0.42156582,2484.6,2483.9,5.5016]
[1724818590007,5.3328,2485.0,2483.9,5.5016]
[1724818590008,0.10062232,2484.9,2483.9,5.5016]
[1724818590221,0.10062232,2484.9,2484.0,0.95497364]
[1724818590570,4.14875874,2484.9,2484.0,0.95497364]
[1724818591272,4.14875874,2484.9,2483.5,5.4161]
[1724818591273,9.71163642,2484.5,2483.5,5.4161]
[1724818591484,0.10063357,2484.4,2483.5,5.4161]
[1724818591924,4.04813642,2484.3,2483.5,5.4161]
[1724818592072,0.10064451,2484.2,2483.5,5.95771]
[1724818593621,0.10064451,2484.4,2483.5,5.95771]
[1724818595392,5.6635,2484.5,2483.5,5.95771]
[1724818595595,0.1006336,2484.6,2483.6,0.595771]
[1724818597119,0.1006336,2484.6,2483.7,5.6997]
[1724818597322,0.1006336,2484.6,2483.8,0.6295471]
[1724818600497,2.57766581,2484.7,2483.9,0.08050701]
[1724818600834,0.1006338,2484.6,2483.9,0.08050701]
[1724818601198,0.1006338,2484.6,2484.0,5.4722]
[1724818601539,0.1006338,2484.6,2484.1,0.5552707]
[1724818601688,0.1006317,2484.7,2484.1,0.5552707]
[1724818602551,5.87493172,2484.8,2484.1,0.63577607]
[1724818602752,0.42149169,2485.0,2484.3,5.6167]
[1724818603068,9.55603642,2485.5,2484.4,0.63048914]
[1724818603251,1.10059569,2485.4,2484.4,0.63048914]
[1724818603460,4.04813642,2485.3,2484.4,0.55]
[1724818603754,0.10060029,2485.2,2484.3,5.6167]
[1724818603932,4.04813642,2485.1,2484.3,5.6167]
[1724818604120,0.1006119,2485.0,2484.3,5.6167]
[1724818604326,0.1006119,2485.0,2484.3,6.91537]
[1724818606372,4.14874611,2485.3,2484.3,6.91537]
[1724818606524,0.10060962,2485.2,2484.3,6.91537]
[1724818607560,0.10060962,2485.2,2484.4,0.08048771]
[1724818607767,0.10060962,2485.2,2484.4,1.43658577]
[1724818608124,0.10060962,2485.2,2484.5,0.08048772]
[1724818608464,0.10060555,2485.4,2484.6,5.7094]
[1724818608673,0.10059586,2485.6,2484.7,0.08047668]
[1724818608868,1.83277909,2485.6,2484.7,0.65946435]
[1724818609175,0.10059586,2485.6,2484.8,5.7094]
[1724818609467,0.10059586,2485.6,2484.9,0.08047662]
[1724818610203,0.10059586,2485.6,2484.9,0.08047588]
[1724818610366,0.10058736,2485.8,2484.9,0.08047588]
[1724818610686,1.038191,2485.8,2484.9,1.31598759]
[1724818610895,0.10058741,2485.7,2484.9,1.31598759]
[1724818611760,4.14872383,2485.7,2484.8,5.7094]
[1724818612290,0.10058741,2485.7,2484.9,0.08046995]
[1724818612601,0.10058614,2485.8,2484.9,5.41686995]
[1724818612903,4.04813642,2486.1,2485.1,5.3364]
[1724818612904,0.10057988,2486.0,2485.1,5.3364]
[1724818613124,0.10057988,2486.0,2485.2,0.08046394]
[1724818613294,1.10451151,2486.0,2485.2,0.08046394]
[1724818613474,1.10451151,2486.0,2485.1,4.72966394]
[1724818613770,1.10451151,2486.0,2485.1,2.60966394]
[1724818613975,1.10451151,2486.0,2485.1,0.48966394]
[1724818614171,1.00393163,2486.0,2485.1,0.48966394]
[1724818614377,1.00393163,2486.0,2485.2,0.45378004]
[1724818614576,0.10057405,2486.1,2485.2,0.45378004]
[1724818615108,9.87703642,2486.5,2485.3,0.55]
[1724818615292,0.10055913,2486.4,2485.4,4.04813642]
[1724818615462,0.10055913,2486.4,2485.3,0.55]
[1724818615670,0.69350504,2486.4,2485.3,0.55]
[1724818616805,4.04813642,2486.3,2485.3,0.55]
[1724818617009,5.5327,2486.1,2485.4,5.3174]
[1724818617226,4.04813642,2485.9,2485.1,0.55]
[1724818617428,0.66389338,2486.0,2485.0,5.3174]
[1724818618631,0.66389338,2486.0,2485.0,12.6874]
[1724818619303,5.3962,2485.8,2485.0,12.6874]
[1724818621534,4.14870973,2485.7,2484.8,8.20952476]
[1724818621735,5.5279,2485.6,2484.8,7.37]
[1724818622032,6.04336287,2485.6,2484.8,7.37]
[1724818622326,6.04336287,2485.6,2484.9,3.5025014]
[1724818622538,6.04336287,2485.6,2485.0,1.40099145]
[1724818622731,0.41487097,2485.6,2484.9,5.3136]
[1724818622893,0.10059181,2485.8,2485.0,3.50247651]
[1724818623093,0.10059181,2485.8,2484.9,6.15312476]
[1724818623293,0.10059181,2485.8,2484.8,7.37]
[1724818623294,9.66693642,2485.7,2484.8,7.37]
[1724818623543,0.10059199,2485.6,2484.8,7.37]
[1724818624515,9.36583642,2485.5,2484.8,7.37]
[1724818624734,0.10060037,2485.4,2484.8,7.37]
[1724818627619,9.88143642,2485.3,2484.8,7.37]
[1724818627946,1.09880613,2485.2,2484.8,7.37]
[1724818628639,5.5451,2485.5,2484.9,0.08048627]
[1724818629221,0.10059487,2485.4,2484.8,13.0332]
[1724818629569,9.83353642,2485.3,2484.8,7.37]
[1724818629766,1.09401571,2485.2,2484.8,7.37]
[1724818629973,1.09401571,2485.2,2485.0,4.04813642]
[1724818630458,5.5382,2485.1,2484.8,4.04813642]
[1724818630662,5.5382,2485.1,2485.0,4.04813642]
[1724818630663,5.63881192,2485.1,2485.0,4.04813642]
[1724818630842,5.5382,2485.1,2485.0,4.04813642]
[1724818631027,6.09202,2485.1,2484.8,4.04813642]
[1724818631230,0.10061231,2485.0,2484.8,4.04813642]
[1724818631675,0.10061231,2485.0,2484.6,4.04813642]
[1724818632944,5.6723,2484.9,2484.4,4.04813642]
[1724818633152,5.6723,2484.7,2484.4,4.04813642]
[1724818633350,0.1006281,2484.6,2484.4,4.04813642]
[1724818635461,5.6723,2484.7,2484.4,4.04813642]
[1724818635762,5.6723,2484.7,2484.6,4.04813642]
[1724818636379,6.23953,2484.7,2484.6,4.04813642]
[1724818637353,5.6723,2484.7,2484.6,4.04813642]
[1724818638284,5.5265,2485.0,2484.6,4.04813642]
[1724818638487,5.5265,2485.0,2484.8,4.04813642]
[1724818638788,0.10061343,2484.9,2484.6,4.04813642]
[1724818640932,0.42149938,2484.8,2484.6,4.04813642]
[1724818649995,0.42149938,2484.8,2484.6,4.12862577]
[1724818650597,0.42149938,2484.8,2484.6,4.04813642]
[1724818652091,4.8508153,2485.2,2484.6,4.04813642]
[1724818652333,0.10060699,2485.1,2484.8,4.04813642]
[1724818652528,0.5220539,2485.1,2484.8,4.04813642]
[1724818653325,0.42144691,2485.1,2484.8,4.04813642]
[1724818655132,5.5883,2485.0,2484.8,4.04813642]
[1724818656235,0.42144691,2485.1,2484.8,4.45295006]
[1724818657436,0.42144691,2485.1,2484.8,4.04813642]
[1724818658558,6.1127,2485.0,2484.8,4.04813642]
[1724818658915,6.21330692,2485.0,2484.5,4.04813642]
[1724818659119,6.21330692,2485.0,2484.3,4.04813642]
[1724818659357,6.42357538,2484.9,2484.3,4.04813642]
[1724818659528,5.86072442,2484.8,2484.3,4.04813642]
[1724818659759,0.10062387,2484.7,2484.5,4.04813642]
[1724818661571,5.86072377,2484.8,2484.5,4.04813642]
[1724818664736,5.86072378,2484.8,2484.5,4.04813642]
[1724818664935,4.31295703,2484.8,2484.5,4.04813642]
[1724818665240,0.02633671,2484.7,2484.5,4.04813642]
[1724818665544,0.02633671,2484.7,2484.3,4.04813642]
[1724818666748,0.02633671,2484.7,2484.5,4.04813642]
[1724818668375,4.31295703,2484.8,2484.5,4.04813642]
[1724818670279,4.31295703,2484.8,2484.7,1.68373881]
[1724818670974,4.73445038,2484.8,2484.7,1.68373881]
[1724818671544,4.73293924,2484.8,2484.7,1.68373881]
[1724818673081,0.42149335,2484.8,2484.7,1.68373881]
[1724818673278,19.72,2485.7,2484.7,2.53192082]
[1724818673483,0.4038,2488.6,2484.8,0.08047665]
[1724818673484,0.44779384,2485.6,2484.8,0.08047665]
[1724818673686,0.44779384,2485.6,2484.8,0.84826308]
[1724818673890,0.42145713,2485.6,2484.8,0.84826308]
[1724818674195,0.42145713,2485.6,2485.5,1.68373881]
[1724818675191,0.44779384,2485.6,2485.5,1.68373881]
[1724818675992,0.44779384,2485.6,2485.3,4.03869005]
[1724818679882,0.44779384,2485.6,2485.1,4.03869005]
[1724818680195,5.5998,2485.5,2484.7,4.03869005]
[1724818680351,6.0877,2485.3,2484.9,4.03869005]
[1724818680553,0.02633671,2485.2,2484.9,4.03869005]
[1724818682345,0.02633671,2485.2,2484.5,0.82266593]
[1724818682654,5.80193671,2485.5,2484.7,4.03869005]
[1724818685147,5.80193671,2485.5,2485.1,4.03869005]
[1724818686452,5.80193671,2485.5,2484.9,4.03869005]
[1724818687059,5.80193671,2485.5,2484.7,4.03869005]
[1724818691584,5.80193671,2485.5,2484.9,4.03869005]
[1724818691786,5.80193671,2485.5,2485.1,4.03869005]
[1724818692980,5.7756,2485.5,2485.3,4.03869005]
[1724818693154,7.44,2485.9,2485.3,9.72889005]
[1724818693355,7.44,2485.9,2485.5,4.03869005]
[1724818693595,0.02633671,2485.8,2485.5,4.03869005]
[1724818694193,5.6236,2486.3,2485.7,4.03869005]
[1724818694399,5.6236,2486.3,2486.2,4.03869005]